Workbook

Sheet Cronograma
B2: PREÇO TOTAL: | E2: 3333877.76
C3: assinatura contrato concessão | G3: ORDEM DE INÍCIO CONCESSÃO | K3: início da MODERNIZAÇÃO
B4: mês | C4: 1 | D4: 2 | E4: 3 | F4: 4 | G4: 5 | H4: 6 | I4: 7 | J4: 8 | K4: 9 | L4: 10 | M4: 11 | N4: 12 | O4: 13 | P4: 14 | Q4: 15 | R4: 16 | S4: 17 | T4: 18 | U4: 19 | V4: 20 | W4: 21 | X4: 22 | Y4: 23 | Z4: 24 | AA4: 25 | AB4: 26 | AC4: 27 | AD4: 28 | AE4: 29 | AF4: 30 | AG4: 31 | AH4: 32 | AI4: 33 | AJ4: 34 | AK4: 35 | AL4: 36 | AM4: 37 | AN4: 38 | AO4: 39 | AP4: 40 | AQ4: 41 | AR4: 42 | AS4: 43 | AT4: 44 | AU4: 45 | AV4: 46 | AW4: 47 | AX4: 48 | AY4: 49 | AZ4: 50 | BA4: 51 | BB4: 52 | BC4: 53 | BD4: 54 | BE4: 55 | BF4: 56 | BG4: 57 | BH4: 58 | BI4: 59 | BJ4: 60 | BK4: 61 | BL4: 62 | BM4: 63 | BN4: 64 | BO4: 65 | BP4: 66 | BQ4: 67 | BR4: 68
B5: CONCESSÃO | C5: Fase preliminar - 4m. | G5: FASE 1 - 4m. | K5: FASE 2 - 1º marco (8 m. início Fase 2) | S5: FASE 2 - 2º marco (14 m. inínio Fase2) | Y5: FASE 2 - 3 º marco (20 m. início F2) | AP5: 1º BCE | BB5: 2º BCE | BN5: 3º BCE
B6: V.I. | K6: Etapa I - 4m. | O6: Etapa II - 56 m.
K7: Etapa III
B8: mês FASE 1 concessão | G8: 1 | H8: 2 | I8: 3 | J8: 4
B9: mês FASE 2 concessão | K9: 1 | L9: 2 | M9: 3 | N9: 4 | O9: 5 | P9: 6 | Q9: 7 | R9: 8 | S9: 9 | T9: 10 | U9: 11 | V9: 12 | W9: 13 | X9: 14 | Y9: 15 | Z9: 16 | AA9: 17 | AB9: 18 | AC9: 19 | AD9: 20
B13: V.I. (mês das Etapas) | K13: 1 | L13: 2 | M13: 3 | N13: 4 | O13: 1 | P13: 2 | Q13: 3 | R13: 4 | S13: 5 | T13: 6 | U13: 7 | V13: 8 | W13: 9 | X13: 10 | Y13: 11 | Z13: 12 | AA13: 13 | AB13: 14 | AC13: 15 | AD13: 16 | AE13: 17 | AF13: 18 | AG13: 19 | AH13: 20 | AI13: 21 | AJ13: 22 | AK13: 23 | AL13: 24 | AM13: 25 | AN13: 26 | AO13: 27 | AP13: 28 | AQ13: 29 | AR13: 30 | AS13: 31 | AT13: 32 | AU13: 33 | AV13: 34 | AW13: 35 | AX13: 36 | AY13: 37 | AZ13: 38 | BA13: 39 | BB13: 40 | BC13: 41 | BD13: 42 | BE13: 43 | BF13: 44 | BG13: 45 | BH13: 46 | BI13: 47 | BJ13: 48 | BK13: 49 | BL13: 50 | BM13: 51 | BN13: 52 | BO13: 53 | BP13: 54 | BQ13: 55 | BR13: 56
B14: produtos V.I. | K14: P1, P2, P3 | L14: P4 a P10 | M14: P11 a P13 | N14: P14 a P16 | O14: P17 | P14: P17 | Q14: P17 | R14: P17 | S14: P17 | T14: P17 | U14: P17 | V14: P17 | W14: P17 | X14: P17 | Y14: P17 | Z14: P17 | AA14: P17 | AB14: P17 | AC14: P17 | AD14: P17 | AE14: P17 | AF14: P17 | AG14: P17 | AH14: P17 | AI14: P17 | AJ14: P17 | AK14: P17 | AL14: P17 | AM14: P17 | AN14: P17 | AO14: P17 | AP14: P17 | AQ14: P17 | AR14: P17 | AS14: P17 | AT14: P17 | AU14: P17 | AV14: P17 | AW14: P17 | AX14: P17 | AY14: P17 | AZ14: P17 | BA14: P17 | BB14: P17 | BC14: P17 | BD14: P17 | BE14: P17 | BF14: P17 | BG14: P17 | BH14: P17 | BI14: P17 | BJ14: P17 | BK14: P17 | BL14: P17 | BM14: P17 | BN14: P17 | BO14: P17 | BP14: P17 | BQ14: P17 | BR14: P17
O15: P18 | P15: P18 | Q15: P18 | R15: P18 | S15: P18 | T15: P18 | U15: P18 | V15: P18 | W15: P18 | X15: P18 | Y15: P18 | Z15: P18 | AA15: P18 | AB15: P18 | AC15: P18 | AD15: P18 | AE15: P18 | AF15: P18 | AG15: P18 | AH15: P18 | AI15: P18 | AJ15: P18 | AK15: P18 | AL15: P18 | AM15: P18 | AN15: P18 | AO15: P18 | AP15: P18 | AQ15: P18 | AR15: P18 | AS15: P18 | AT15: P18 | AU15: P18 | AV15: P18 | AW15: P18 | AX15: P18 | AY15: P18 | AZ15: P18 | BA15: P18 | BB15: P18 | BC15: P18 | BD15: P18 | BE15: P18 | BF15: P18 | BG15: P18 | BH15: P18 | BI15: P18 | BJ15: P18 | BK15: P18 | BL15: P18 | BM15: P18 | BN15: P18 | BO15: P18 | BP15: P18 | BQ15: P18 | BR15: P18
O16: P19 | P16: P19 | Q16: P19 | R16: P19 | S16: P19 | T16: P19 | U16: P19 | V16: P19 | W16: P19 | X16: P19 | Y16: P19 | Z16: P19 | AA16: P19 | AB16: P19 | AC16: P19 | AD16: P19 | AE16: P19 | AF16: P19 | AG16: P19 | AH16: P19 | AI16: P19 | AJ16: P19 | AK16: P19 | AL16: P19 | AM16: P19 | AN16: P19 | AO16: P19 | AP16: P19 | AQ16: P19 | AR16: P19 | AS16: P19 | AT16: P19 | AU16: P19 | AV16: P19 | AW16: P19 | AX16: P19 | AY16: P19 | AZ16: P19 | BA16: P19 | BB16: P19 | BC16: P19 | BD16: P19 | BE16: P19 | BF16: P19 | BG16: P19 | BH16: P19 | BI16: P19 | BJ16: P19 | BK16: P19 | BL16: P19 | BM16: P19 | BN16: P19 | BO16: P19 | BP16: P19 | BQ16: P19 | BR16: P19
S17: P20 | Y17: P20 | AE17: P20 | AF17: P20
O18: P21 | P18: P21 | Q18: P21 | R18: P21 | S18: P21 | T18: P21 | U18: P21 | V18: P21 | W18: P21 | X18: P21 | Y18: P21 | Z18: P21 | AA18: P21 | AB18: P21 | AC18: P21 | AD18: P21 | AE18: P21 | AF18: P21 | AG18: P21 | AH18: P21 | AI18: P21 | AJ18: P21 | AK18: P21 | AL18: P21 | AM18: P21 | AN18: P21 | AO18: P21 | AP18: P21 | AQ18: P21 | AR18: P21 | AS18: P21 | AT18: P21 | AU18: P21 | AV18: P21 | AW18: P21 | AX18: P21 | AY18: P21 | AZ18: P21 | BA18: P21 | BB18: P21 | BC18: P21 | BD18: P21 | BE18: P21 | BF18: P21 | BG18: P21 | BH18: P21 | BI18: P21 | BJ18: P21 | BK18: P21 | BL18: P21 | BM18: P21 | BN18: P21 | BO18: P21 | BP18: P21 | BQ18: P21 | BR18: P21
AP19: P22 | BB19: P22 | BN19: P22
B20: Valor mensal de desembolso das Etapas I e II | K20: =SUM('Tabelas Etapas I, II e III'!D3:D5) -> 72496.155 | L20: =SUM('Tabelas Etapas I, II e III'!D6:D12) -> 169157.695 | M20: =SUM('Tabelas Etapas I, II e III'!D13:D15) -> 169157.695 | N20: =SUM('Tabelas Etapas I, II e III'!D16:D18) -> 72496.155 | O20: =SUM('Tabelas Etapas I, II e III'!$F$25,'Tabelas Etapas I, II e III'!$F$26,'Tabelas Etapas I, II e III'!$F$27,'Tabelas Etapas I, II e III'!$F$29) -> 48818.96 | P20: =SUM('Tabelas Etapas I, II e III'!$F$25,'Tabelas Etapas I, II e III'!$F$26,'Tabelas Etapas I, II e III'!$F$27,'Tabelas Etapas I, II e III'!$F$29) -> 48818.96 | Q20: =SUM('Tabelas Etapas I, II e III'!$F$25,'Tabelas Etapas I, II e III'!$F$26,'Tabelas Etapas I, II e III'!$F$27,'Tabelas Etapas I, II e III'!$F$29) -> 48818.96 | R20: =SUM('Tabelas Etapas I, II e III'!$F$25,'Tabelas Etapas I, II e III'!$F$26,'Tabelas Etapas I, II e III'!$F$27,'Tabelas Etapas I, II e III'!$F$29) -> 48818.96 | S20: =SUM('Tabelas Etapas I, II e III'!$F$25,'Tabelas Etapas I, II e III'!$F$26,'Tabelas Etapas I, II e III'!$F$27,'Tabelas Etapas I, II e III'!$F$29,'Tabelas Etapas I, II e III'!$F$28) -> 61023.7 | T20: =SUM('Tabelas Etapas I, II e III'!$F$25,'Tabelas Etapas I, II e III'!$F$26,'Tabelas Etapas I, II e III'!$F$27,'Tabelas Etapas I, II e III'!$F$29) -> 48818.96 | U20: =SUM('Tabelas Etapas I, II e III'!$F$25,'Tabelas Etapas I, II e III'!$F$26,'Tabelas Etapas I, II e III'!$F$27,'Tabelas Etapas I, II e III'!$F$29) -> 48818.96 | V20: =SUM('Tabelas Etapas I, II e III'!$F$25,'Tabelas Etapas I, II e III'!$F$26,'Tabelas Etapas I, II e III'!$F$27,'Tabelas Etapas I, II e III'!$F$29) -> 48818.96 | W20: =SUM('Tabelas Etapas I, II e III'!$F$25,'Tabelas Etapas I, II e III'!$F$26,'Tabelas Etapas I, II e III'!$F$27,'Tabelas Etapas I, II e III'!$F$29) -> 48818.96 | X20: =SUM('Tabelas Etapas I, II e III'!$F$25,'Tabelas Etapas I, II e III'!$F$26,'Tabelas Etapas I, II e III'!$F$27,'Tabelas Etapas I, II e III'!$F$29) -> 48818.96 | Y20: =SUM('Tabelas Etapas I, II e III'!$F$25,'Tabelas Etapas I, II e III'!$F$26,'Tabelas Etapas I, II e III'!$F$27,'Tabelas Etapas I, II e III'!$F$29,'Tabelas Etapas I, II e III'!$F$28) -> 61023.7 | Z20: =SUM('Tabelas Etapas I, II e III'!$F$25,'Tabelas Etapas I, II e III'!$F$26,'Tabelas Etapas I, II e III'!$F$27,'Tabelas Etapas I, II e III'!$F$29) -> 48818.96 | AA20: =SUM('Tabelas Etapas I, II e III'!$F$25,'Tabelas Etapas I, II e III'!$F$26,'Tabelas Etapas I, II e III'!$F$27,'Tabelas Etapas I, II e III'!$F$29) -> 48818.96 | AB20: =SUM('Tabelas Etapas I, II e III'!$F$25,'Tabelas Etapas I, II e III'!$F$26,'Tabelas Etapas I, II e III'!$F$27,'Tabelas Etapas I, II e III'!$F$29) -> 48818.96 | AC20: =SUM('Tabelas Etapas I, II e III'!$F$25,'Tabelas Etapas I, II e III'!$F$26,'Tabelas Etapas I, II e III'!$F$27,'Tabelas Etapas I, II e III'!$F$29) -> 48818.96 | AD20: =SUM('Tabelas Etapas I, II e III'!$F$25,'Tabelas Etapas I, II e III'!$F$26,'Tabelas Etapas I, II e III'!$F$27,'Tabelas Etapas I, II e III'!$F$29) -> 48818.96 | AE20: =SUM('Tabelas Etapas I, II e III'!$F$25,'Tabelas Etapas I, II e III'!$F$26,'Tabelas Etapas I, II e III'!$F$27,'Tabelas Etapas I, II e III'!$F$29,'Tabelas Etapas I, II e III'!$F$28) -> 61023.7 | AF20: =SUM('Tabelas Etapas I, II e III'!$F$25,'Tabelas Etapas I, II e III'!$F$26,'Tabelas Etapas I, II e III'!$F$27,'Tabelas Etapas I, II e III'!$F$29,'Tabelas Etapas I, II e III'!$F$28) -> 61023.7 | AG20: =SUM('Tabelas Etapas I, II e III'!$F$25,'Tabelas Etapas I, II e III'!$F$26,'Tabelas Etapas I, II e III'!$F$27,'Tabelas Etapas I, II e III'!$F$29) -> 48818.96 | AH20: =SUM('Tabelas Etapas I, II e III'!$F$25,'Tabelas Etapas I, II e III'!$F$26,'Tabelas Etapas I, II e III'!$F$27,'Tabelas Etapas I, II e III'!$F$29) -> 48818.96 | AI20: =SUM('Tabelas Etapas I, II e III'!$F$25,'Tabelas Etapas I, II e III'!$F$26,'Tabelas Etapas I, II e III'!$F$27,'Tabelas Etapas I, II e III'!$F$29) -> 48818.96 | AJ20: =SUM('Tabelas Etapas I, II e III'!$F$25,'Tabelas Etapas I, II e III'!$F$26,'Tabelas Etapas I, II e III'!$F$27,'Tabelas Etapas I, II e III'!$F$29) -> 48818.96 | AK20: =SUM('Tabelas Etapas I, II e III'!$F$25,'Tabelas Etapas I, II e III'!$F$26,'Tabelas Etapas I, II e III'!$F$27,'Tabelas Etapas I, II e III'!$F$29) -> 48818.96 | AL20: =SUM('Tabelas Etapas I, II e III'!$F$25,'Tabelas Etapas I, II e III'!$F$26,'Tabelas Etapas I, II e III'!$F$27,'Tabelas Etapas I, II e III'!$F$29) -> 48818.96 | AM20: =SUM('Tabelas Etapas I, II e III'!$F$25,'Tabelas Etapas I, II e III'!$F$26,'Tabelas Etapas I, II e III'!$F$27,'Tabelas Etapas I, II e III'!$F$29) -> 48818.96 | AN20: =SUM('Tabelas Etapas I, II e III'!$F$25,'Tabelas Etapas I, II e III'!$F$26,'Tabelas Etapas I, II e III'!$F$27,'Tabelas Etapas I, II e III'!$F$29) -> 48818.96 | AO20: =SUM('Tabelas Etapas I, II e III'!$F$25,'Tabelas Etapas I, II e III'!$F$26,'Tabelas Etapas I, II e III'!$F$27,'Tabelas Etapas I, II e III'!$F$29) -> 48818.96 | AP20: =SUM('Tabelas Etapas I, II e III'!$F$25,'Tabelas Etapas I, II e III'!$F$26,'Tabelas Etapas I, II e III'!$F$27,'Tabelas Etapas I, II e III'!$F$29,'Tabelas Etapas I, II e III'!$F$30) -> 61023.7 | AQ20: =SUM('Tabelas Etapas I, II e III'!$F$25,'Tabelas Etapas I, II e III'!$F$26,'Tabelas Etapas I, II e III'!$F$27,'Tabelas Etapas I, II e III'!$F$29) -> 48818.96 | AR20: =SUM('Tabelas Etapas I, II e III'!$F$25,'Tabelas Etapas I, II e III'!$F$26,'Tabelas Etapas I, II e III'!$F$27,'Tabelas Etapas I, II e III'!$F$29) -> 48818.96 | AS20: =SUM('Tabelas Etapas I, II e III'!$F$25,'Tabelas Etapas I, II e III'!$F$26,'Tabelas Etapas I, II e III'!$F$27,'Tabelas Etapas I, II e III'!$F$29) -> 48818.96 | AT20: =SUM('Tabelas Etapas I, II e III'!$F$25,'Tabelas Etapas I, II e III'!$F$26,'Tabelas Etapas I, II e III'!$F$27,'Tabelas Etapas I, II e III'!$F$29) -> 48818.96 | AU20: =SUM('Tabelas Etapas I, II e III'!$F$25,'Tabelas Etapas I, II e III'!$F$26,'Tabelas Etapas I, II e III'!$F$27,'Tabelas Etapas I, II e III'!$F$29) -> 48818.96 | AV20: =SUM('Tabelas Etapas I, II e III'!$F$25,'Tabelas Etapas I, II e III'!$F$26,'Tabelas Etapas I, II e III'!$F$27,'Tabelas Etapas I, II e III'!$F$29) -> 48818.96 | AW20: =SUM('Tabelas Etapas I, II e III'!$F$25,'Tabelas Etapas I, II e III'!$F$26,'Tabelas Etapas I, II e III'!$F$27,'Tabelas Etapas I, II e III'!$F$29) -> 48818.96 | AX20: =SUM('Tabelas Etapas I, II e III'!$F$25,'Tabelas Etapas I, II e III'!$F$26,'Tabelas Etapas I, II e III'!$F$27,'Tabelas Etapas I, II e III'!$F$29) -> 48818.96 | AY20: =SUM('Tabelas Etapas I, II e III'!$F$25,'Tabelas Etapas I, II e III'!$F$26,'Tabelas Etapas I, II e III'!$F$27,'Tabelas Etapas I, II e III'!$F$29) -> 48818.96 | AZ20: =SUM('Tabelas Etapas I, II e III'!$F$25,'Tabelas Etapas I, II e III'!$F$26,'Tabelas Etapas I, II e III'!$F$27,'Tabelas Etapas I, II e III'!$F$29) -> 48818.96 | BA20: =SUM('Tabelas Etapas I, II e III'!$F$25,'Tabelas Etapas I, II e III'!$F$26,'Tabelas Etapas I, II e III'!$F$27,'Tabelas Etapas I, II e III'!$F$29) -> 48818.96 | BB20: =SUM('Tabelas Etapas I, II e III'!$F$25,'Tabelas Etapas I, II e III'!$F$26,'Tabelas Etapas I, II e III'!$F$27,'Tabelas Etapas I, II e III'!$F$29,'Tabelas Etapas I, II e III'!$F$30) -> 61023.7 | BC20: =SUM('Tabelas Etapas I, II e III'!$F$25,'Tabelas Etapas I, II e III'!$F$26,'Tabelas Etapas I, II e III'!$F$27,'Tabelas Etapas I, II e III'!$F$29) -> 48818.96 | BD20: =SUM('Tabelas Etapas I, II e III'!$F$25,'Tabelas Etapas I, II e III'!$F$26,'Tabelas Etapas I, II e III'!$F$27,'Tabelas Etapas I, II e III'!$F$29) -> 48818.96 | BE20: =SUM('Tabelas Etapas I, II e III'!$F$25,'Tabelas Etapas I, II e III'!$F$26,'Tabelas Etapas I, II e III'!$F$27,'Tabelas Etapas I, II e III'!$F$29) -> 48818.96 | BF20: =SUM('Tabelas Etapas I, II e III'!$F$25,'Tabelas Etapas I, II e III'!$F$26,'Tabelas Etapas I, II e III'!$F$27,'Tabelas Etapas I, II e III'!$F$29) -> 48818.96 | BG20: =SUM('Tabelas Etapas I, II e III'!$F$25,'Tabelas Etapas I, II e III'!$F$26,'Tabelas Etapas I, II e III'!$F$27,'Tabelas Etapas I, II e III'!$F$29) -> 48818.96 | BH20: =SUM('Tabelas Etapas I, II e III'!$F$25,'Tabelas Etapas I, II e III'!$F$26,'Tabelas Etapas I, II e III'!$F$27,'Tabelas Etapas I, II e III'!$F$29) -> 48818.96 | BI20: =SUM('Tabelas Etapas I, II e III'!$F$25,'Tabelas Etapas I, II e III'!$F$26,'Tabelas Etapas I, II e III'!$F$27,'Tabelas Etapas I, II e III'!$F$29) -> 48818.96 | BJ20: =SUM('Tabelas Etapas I, II e III'!$F$25,'Tabelas Etapas I, II e III'!$F$26,'Tabelas Etapas I, II e III'!$F$27,'Tabelas Etapas I, II e III'!$F$29) -> 48818.96 | BK20: =SUM('Tabelas Etapas I, II e III'!$F$25,'Tabelas Etapas I, II e III'!$F$26,'Tabelas Etapas I, II e III'!$F$27,'Tabelas Etapas I, II e III'!$F$29) -> 48818.96 | BL20: =SUM('Tabelas Etapas I, II e III'!$F$25,'Tabelas Etapas I, II e III'!$F$26,'Tabelas Etapas I, II e III'!$F$27,'Tabelas Etapas I, II e III'!$F$29) -> 48818.96 | BM20: =SUM('Tabelas Etapas I, II e III'!$F$25,'Tabelas Etapas I, II e III'!$F$26,'Tabelas Etapas I, II e III'!$F$27,'Tabelas Etapas I, II e III'!$F$29) -> 48818.96 | BN20: =SUM('Tabelas Etapas I, II e III'!$F$25,'Tabelas Etapas I, II e III'!$F$26,'Tabelas Etapas I, II e III'!$F$27,'Tabelas Etapas I, II e III'!$F$29,'Tabelas Etapas I, II e III'!$F$30) -> 61023.7 | BO20: =SUM('Tabelas Etapas I, II e III'!$F$25,'Tabelas Etapas I, II e III'!$F$26,'Tabelas Etapas I, II e III'!$F$27,'Tabelas Etapas I, II e III'!$F$29) -> 48818.96 | BP20: =SUM('Tabelas Etapas I, II e III'!$F$25,'Tabelas Etapas I, II e III'!$F$26,'Tabelas Etapas I, II e III'!$F$27,'Tabelas Etapas I, II e III'!$F$29) -> 48818.96 | BQ20: =SUM('Tabelas Etapas I, II e III'!$F$25,'Tabelas Etapas I, II e III'!$F$26,'Tabelas Etapas I, II e III'!$F$27,'Tabelas Etapas I, II e III'!$F$29) -> 48818.96 | BR20: =SUM('Tabelas Etapas I, II e III'!$F$25,'Tabelas Etapas I, II e III'!$F$26,'Tabelas Etapas I, II e III'!$F$27,'Tabelas Etapas I, II e III'!$F$29) -> 48818.96
B22: Quantidade de Produtos V.I.
B23: P1 | C23: 1 | E23: P16 | J23: 1
B24: P2 | C24: 1 | E24: P17 | J24: 56
B25: P3 | C25: 1 | E25: P18 | J25: 56
B26: P4 | C26: 1 | E26: P19 | J26: 56 | M26: Etapa | Q26: Porcentagem sobre total | T26: Total das etapas
B27: P5 | C27: 1 | E27: P20 (aceite e recebim.) | J27: 4
B28: P6 | C28: 1 | E28: P21 | J28: 56 | M28: Etapa I | Q28: 0.1449686326 | T28: =$Q$28*$E$2 -> 483307.7
B29: P7 | C29: 1 | E29: P22 (BCE) | J29: 3
B30: P8 | C30: 1 | E30: P23 (eventual) | J30: 5 | M30: Etapa II | Q30: 0.8456503636 | T30: =$Q$30*$E$2 -> 2819294.94
B31: P9 | C31: 1 | E31: P24 (eventual) | J31: 5
B32: P10 | C32: 1 | E32: P25 (eventual) | J32: 2 | M32: Etapa III | Q32: 0.009381003819 | T32: =$Q$32*$E$2 -> 31275.12
B33: P11 | C33: 1
B34: P12 | C34: 1 | M34: TOTAL | Q34: =SUM(Q28:S33) -> 1 | T34: =SUM(T28:W33) -> 3333877.76
B35: P13 | C35: 1
B36: P14 | C36: 1
B37: P15 | C37: 1

Sheet Tabelas Etapas I, II e III
A1: Tabela 4 – Percentuais dos produtos da Etapa I
A2: Produto | B2: Mês da entrega | C2: % do produto em relação ao valor total do projeto | D2: Valor total máximo do produto | E2: % do produto em relação à Etapa I
A3: P1 | B3: 1 | C3: =(Cronograma!$Q$28/20) -> 0.007248431628 | D3: =C3*Cronograma!$E$2 -> 24165.385 | E3: =D3/$D$19 -> 0.05
A4: P2 | B4: 1 | C4: =(Cronograma!$Q$28/20) -> 0.007248431628 | D4: =C4*Cronograma!$E$2 -> 24165.385 | E4: =D4/$D$19 -> 0.05
A5: P3 | B5: 1 | C5: =(Cronograma!$Q$28/20) -> 0.007248431628 | D5: =C5*Cronograma!$E$2 -> 24165.385 | E5: 0.05
A6: P4 | B6: 2 | C6: =(Cronograma!$Q$28/20) -> 0.007248431628 | D6: =C6*Cronograma!$E$2 -> 24165.385 | E6: 0.05
A7: P5 | B7: 2 | C7: =(Cronograma!$Q$28/20) -> 0.007248431628 | D7: =C7*Cronograma!$E$2 -> 24165.385 | E7: 0.05
A8: P6 | B8: 2 | C8: =(Cronograma!$Q$28/20) -> 0.007248431628 | D8: =C8*Cronograma!$E$2 -> 24165.385 | E8: 0.05
A9: P7 | B9: 2 | C9: =(Cronograma!$Q$28/20) -> 0.007248431628 | D9: =C9*Cronograma!$E$2 -> 24165.385 | E9: 0.05
A10: P8 | B10: 2 | C10: =(Cronograma!$Q$28/20) -> 0.007248431628 | D10: =C10*Cronograma!$E$2 -> 24165.385 | E10: 0.05
A11: P9 | B11: 2 | C11: =(Cronograma!$Q$28/20) -> 0.007248431628 | D11: =C11*Cronograma!$E$2 -> 24165.385 | E11: 0.05
A12: P10 | B12: 2 | C12: =(Cronograma!$Q$28/20) -> 0.007248431628 | D12: =C12*Cronograma!$E$2 -> 24165.385 | E12: 0.05
A13: P11 | B13: 3 | C13: =(Cronograma!$Q$28/20)*3 -> 0.02174529488 | D13: =C13*Cronograma!$E$2 -> 72496.155 | E13: 0.15
A14: P12 | B14: 3 | C14: =(Cronograma!$Q$28/20)*3 -> 0.02174529488 | D14: =C14*Cronograma!$E$2 -> 72496.155 | E14: 0.15
A15: P13 | B15: 3 | C15: =(Cronograma!$Q$28/20) -> 0.007248431628 | D15: =C15*Cronograma!$E$2 -> 24165.385 | E15: 0.05
A16: P14 | B16: 4 | C16: =(Cronograma!$Q$28/20) -> 0.007248431628 | D16: =C16*Cronograma!$E$2 -> 24165.385 | E16: 0.05
A17: P15 | B17: 4 | C17: =(Cronograma!$Q$28/20) -> 0.007248431628 | D17: =C17*Cronograma!$E$2 -> 24165.385 | E17: 0.05
A18: P16 | B18: 4 | C18: =(Cronograma!$Q$28/20) -> 0.007248431628 | D18: =C18*Cronograma!$E$2 -> 24165.385 | E18: 0.05
A19: TOTAL | C19: =SUM(C3:C18) -> 0.1449686326 | D19: =SUM(D3:D18) -> 483307.7 | E19: =SUM(E3:E18) -> 1
A23: Tabela 5 – Produtos para pagamentos referentes à Etapa II
A24: Produto | B24: Quantidade de entregas | C24: % referente à entrega do produto em relação ao valor da Etapa II | D24: % do produto em relação ao valor total do projeto | E24: Valor total máximo do produto | F24: Valor unitário máximo do produto
A25: P17 | B25: 56 | C25: =1/$B$31 -> 0.004329004329 | D25: =E25/Cronograma!$E$2 -> 0.2050061488 | E25: =B25*Cronograma!$T$30*'Tabelas Etapas I, II e III'!C25 -> 683465.44 | F25: =Cronograma!$T$30*'Tabelas Etapas I, II e III'!C25 -> 12204.74
A26: P18 | B26: 56 | C26: =1/$B$31 -> 0.004329004329 | D26: =E26/Cronograma!$E$2 -> 0.2050061488 | E26: =B26*Cronograma!$T$30*'Tabelas Etapas I, II e III'!C26 -> 683465.44 | F26: =Cronograma!$T$30*'Tabelas Etapas I, II e III'!C26 -> 12204.74
A27: P19 | B27: 56 | C27: 0.004329004329 | D27: =E27/Cronograma!$E$2 -> 0.2050061488 | E27: =B27*Cronograma!$T$30*'Tabelas Etapas I, II e III'!C27 -> 683465.44 | F27: =Cronograma!$T$30*'Tabelas Etapas I, II e III'!C27 -> 12204.74
A28: P20 | B28: 4 | C28: 0.004329004329 | D28: =E28/Cronograma!$E$2 -> 0.01464329634 | E28: =B28*Cronograma!$T$30*'Tabelas Etapas I, II e III'!C28 -> 48818.96 | F28: =Cronograma!$T$30*'Tabelas Etapas I, II e III'!C28 -> 12204.74
A29: P21 | B29: 56 | C29: 0.004329004329 | D29: =E29/Cronograma!$E$2 -> 0.2050061488 | E29: =B29*Cronograma!$T$30*'Tabelas Etapas I, II e III'!C29 -> 683465.44 | F29: =Cronograma!$T$30*'Tabelas Etapas I, II e III'!C29 -> 12204.74
A30: P22 | B30: 3 | C30: 0.004329004329 | D30: =E30/Cronograma!$E$2 -> 0.01098247225 | E30: =B30*Cronograma!$T$30*'Tabelas Etapas I, II e III'!C30 -> 36614.22 | F30: =Cronograma!$T$30*'Tabelas Etapas I, II e III'!C30 -> 12204.74
A31: TOTAL | B31: =SUM(B25:B30) -> 231 | C31: =SUMPRODUCT(B25:B30,C25:C30) -> 1 | D31: =SUM(D25:D30) -> 0.8456503636 | E31: =SUM(E25:E30) -> 2819294.94
A35: Valores Etapa III
A36: Qtde Horas para execução dos produtos | B36: % do produto em relação ao valor total do projeto | C36: Valor Total Etapa III | D36: Valor unitário por hora
A37: =SUMPRODUCT(B42:B45,C42:C45) -> 302 | B37: =Cronograma!Q32 -> 0.009381003819 | C37: =B37*Cronograma!E2 -> 31275.12 | D37: =C37/A37 -> 103.56
A41: Tabela 6 – Produtos para pagamentos referentes à Etapa III
A42: Produto | B42: Quantidade do produto a ser entregue | C42: Quantidade de Horas do produto a ser entregue | D42: Valor unitário por hora | E42: % referente à entrega do produto em relação ao valor da Etapa III | F42: % do produto em relação ao valor total do projeto | G42: Valor total máximo do produto
A43: P23 | B43: 5 | C43: 32 | D43: =$D$37 -> 103.56 | E43: =(C43*D43)/$C$37 -> 0.1059602649 | F43: =G43/Cronograma!$E$2 -> 0.004970068249 | G43: =B43*E43*$C$37 -> 16569.6
A44: P24 | B44: 5 | C44: 18 | D44: =$D$37 -> 103.56 | E44: =(C44*D44)/$C$37 -> 0.05960264901 | F44: =G44/Cronograma!$E$2 -> 0.00279566339 | G44: =B44*E44*$C$37 -> 9320.4
A45: P25 | B45: 2 | C45: 26 | D45: 103.56 | E45: 0.08609271523 | F45: =G45/Cronograma!$E$2 -> 0.001615272181 | G45: 5385.12
A46: TOTAL | E46: =SUMPRODUCT(B43:B45,E43:E45) -> 1 | F46: =SUM(F43:F45) -> 0.009381003819 | G46: =SUM(G43:G45) -> 31275.12

Sheet Plan3 (hidden)
